bitfinex-derivatives/quotes_ETHF0:USTF0_20240830
["timestamp","ask_amount","ask_price","bid_price","bid_amount"]
[1725040019412,4.75695575,2461.7,2461.6,0.3597]
[1725040019907,0.40624,2461.7,2461.6,0.3597]
[1725040020208,4.82952772,2461.7,2461.6,0.3597]
[1725040020408,0.40626,2461.6,2461.5,0.00609001]
[1725040020812,4.79280164,2461.6,2461.5,0.00609001]
[1725040021111,0.40627,2461.5,2461.4,0.3681]
[1725040021322,4.22349,2461.5,2460.9,1.86004276]
[1725040021505,0.40633,2461.2,2461.0,0.3758]
[1725040021901,0.40634,2461.1,2461.0,0.3758]
[1725040022103,8.96629834,2461.1,2461.0,0.3758]
[1725040022803,0.40637,2460.9,2460.8,0.00609001]
[1725040022999,3.92637,2460.9,2460.8,0.00609001]
[1725040023306,9.31658876,2460.9,2460.8,0.00609001]
[1725040023506,0.40646,2460.4,2460.1,0.40649]
[1725040023812,3.92647,2460.3,2460.2,0.3758]
[1725040024021,8.30075876,2460.3,2460.2,0.3758]
[1725040024213,12.36555876,2460.3,2460.2,0.3758]
[1725040025304,0.4065,2460.2,2460.0,0.00609001]
[1725040025616,4.43103132,2460.1,2460.0,0.00609001]
[1725040026006,3.92648,2460.3,2460.0,0.00609001]
[1725040026007,4.83752132,2460.2,2460.0,0.00609001]
[1725040026206,3.92648,2460.3,2460.0,0.00609001]
[1725040026606,4.57855673,2460.1,2460.0,0.00609001]
[1725040026814,4.57855673,2460.2,2460.0,0.00609001]
[1725040027111,0.40649,2460.2,2460.0,0.00609001]
[1725040027411,4.69140258,2460.2,2460.0,0.00609001]
[1725040028215,4.69140258,2460.2,2460.0,0.41261001]
[1725040028409,4.69140258,2460.2,2460.0,0.00609001]
[1725040029014,4.69140258,2460.2,2460.0,0.41261001]
[1725040029407,4.69140258,2460.2,2460.1,0.4065]
[1725040029908,4.69140258,2460.2,2460.0,0.00609001]
[1725040031010,5.09789258,2460.2,2460.0,0.00609001]
[1725040031410,0.4065,2460.1,2460.0,0.00609001]
[1725040031725,4.76603728,2460.1,2460.0,0.00609001]
[1725040032414,4.35953728,2460.1,2460.0,0.00609001]
[1725040033615,4.35953728,2460.1,2460.0,4.07089001]
[1725040033811,3.2078,2460.2,2460.0,4.07089001]
[1725040034019,3.2078,2460.2,2460.0,0.00609001]
[1725040034214,0.4065,2460.1,2460.0,0.00609001]
[1725040034512,8.20109736,2460.1,2460.0,0.00609001]
[1725040034720,13.28215736,2460.1,2460.0,0.00609001]
[1725040035614,13.28215736,2460.1,2459.9,0.3636]
[1725040035615,1.01636,2459.9,2459.1,3.61446]
[1725040035815,0.40659,2459.6,2459.4,0.3781]
[1725040036011,0.60923994,2459.6,2459.4,0.3781]
[1725040036218,3.2078,2459.5,2459.4,0.3781]
[1725040036615,8.45359359,2459.5,2459.4,0.3781]
[1725040036823,11.66139359,2459.5,2459.4,0.3781]
[1725040037019,0.40664,2459.3,2459.2,0.00410213]
[1725040037221,3.92664,2459.3,2459.2,0.00410213]
[1725040037414,8.52572074,2459.3,2459.2,0.00410213]
[1725040037815,13.60872074,2459.3,2459.2,0.00410213]
[1725040038119,0.40668,2459.0,2458.9,0.3919]
[1725040038424,0.40672,2458.8,2458.6,4.5411]
[1725040038627,3.52,2458.8,2458.6,0.3831]
[1725040038812,4.65237844,2458.7,2458.6,0.3831]
[1725040040220,5.05910844,2458.7,2458.6,0.3831]
[1725040040425,0.40676,2458.6,2458.3,0.3585]
[1725040040629,0.40678,2458.4,2458.3,0.3585]
[1725040040818,4.22477,2458.4,2457.9,3.2078]
[1725040041122,7.61257517,2458.4,2458.0,0.3825]
[1725040041619,3.52609001,2458.4,2458.0,0.78934]
[1725040041815,0.00609001,2458.4,2458.0,4.4505]
[1725040042125,0.00609001,2458.4,2458.2,3.61461]
[1725040042311,0.00609001,2458.4,2458.3,0.3733]
[1725040042512,0.00609001,2458.4,2458.3,5.2373]
[1725040042716,0.00609001,2458.4,2458.3,4.8305]
[1725040044018,0.41287001,2458.4,2458.3,0.3892]
[1725040044218,5.07419011,2458.4,2458.3,0.3892]
[1725040044421,5.07419011,2458.4,2458.0,0.3825]
[1725040044422,0.40683,2458.1,2458.0,0.3825]
[1725040044723,7.78949734,2458.1,2458.0,0.3825]
[1725040045119,8.39765309,2458.1,2458.0,0.3825]
[1725040045324,7.99082309,2458.1,2458.0,0.3825]
[1725040045726,8.39765309,2458.1,2458.0,0.3825]
[1725040046319,7.99082309,2458.1,2458.0,0.3825]
[1725040047021,8.39765309,2458.1,2458.0,0.3825]
[1725040047226,7.99082309,2458.1,2458.0,0.3825]
[1725040049025,4.47082309,2458.1,2458.0,0.78935]
[1725040049330,3.52,2458.3,2458.0,4.4505]
[1725040049528,3.72619102,2458.3,2458.1,0.40683]
[1725040049827,3.72619102,2458.3,2458.1,0.79832]
[1725040050024,3.72619102,2458.3,2458.2,0.3717]
[1725040052230,3.72619102,2458.3,2458.2,0.77852]
[1725040053223,3.72619102,2458.3,2458.2,0.3717]
[1725040053523,3.72619102,2458.3,2458.2,0.77852]
[1725040053524,3.52,2458.3,2458.2,0.77852]
[1725040053722,0.00609001,2458.4,2458.3,0.4068]
[1725040054725,0.00609001,2458.4,2458.2,0.77851]
[1725040054927,0.00609001,2458.4,2458.3,0.4068]
[1725040055122,0.00609001,2458.4,2458.3,10.4748]
[1725040055329,3.52,2458.7,2458.5,0.40676]
[1725040055530,3.52,2458.7,2458.6,0.79955]
[1725040055732,3.52,2458.7,2458.6,1.16405]
[1725040056028,3.52,2458.7,2458.6,4.8245]
[1725040056223,3.52,2458.7,2458.6,5.23125]
[1725040056626,0.41281001,2458.9,2458.6,4.8245]
[1725040056627,3.52609001,2458.9,2458.6,4.8245]
[1725040056936,0.00609001,2458.9,2458.8,3.61452]
[1725040057123,0.00609001,2458.9,2458.8,13.68172]
[1725040057436,3.52,2459.3,2459.2,0.40665]
[1725040058023,3.2078,2459.4,2459.3,0.40664]
[1725040058330,3.2078,2459.4,2459.3,0.385]
[1725040058540,0.40662,2459.4,2459.3,0.7669]
[1725040058728,0.40662,2459.4,2458.8,7.3658]
[1725040058729,0.40668,2459.1,2458.8,7.3658]
[1725040058929,3.52,2459.2,2458.8,8.1327]
[1725040059235,0.40668,2459.1,2458.8,8.53942]
[1725040059828,0.40668,2459.1,2458.8,8.1327]
[1725040060226,0.40668,2459.1,2458.8,8.53942]
[1725040060432,3.92666,2459.2,2458.8,8.53942]
[1725040060637,3.92666,2459.2,2458.9,0.4067]
[1725040061137,3.92666,2459.2,2458.9,4.0664]
[1725040061138,0.40667,2459.1,2458.9,4.0664]
[1725040061329,0.40667,2459.1,2458.8,4.38141]
[1725040061529,0.40667,2459.1,2458.8,8.44781]
[1725040061743,3.52,2459.2,2458.8,8.0411]
[1725040062036,0.4067,2458.9,2458.8,0.385]
[1725040062834,3.92669,2459.0,2458.8,0.385]
[1725040063129,3.52,2459.0,2458.8,0.385]
[1725040065038,3.92669,2459.0,2458.8,0.385]
[1725040066236,3.52,2459.0,2458.8,0.385]
[1725040066429,3.92669,2459.0,2458.8,0.385]
[1725040067435,8.64010471,2458.9,2458.5,4.5366]
[1725040067734,0.40677,2458.5,2458.4,0.00609001]
[1725040068039,10.06397471,2458.5,2458.4,0.00609001]
[1725040068225,0.40685,2458.1,2457.8,3.596]
[1725040068431,0.61233837,2458.1,2457.8,3.596]
[1725040069334,0.40685,2458.0,2457.8,3.596]
[1725040069641,0.61232837,2458.1,2457.8,3.596]
[1725040069842,0.20548837,2458.1,2457.8,3.596]
[1725040070039,0.00610265,2458.2,2457.8,7.6648]
[1725040070345,0.00610265,2458.2,2458.0,0.40684]
[1725040070841,0.00610265,2458.2,2458.1,0.40683]
[1725040071344,0.00610265,2458.2,2458.1,4.47483]
[1725040074231,7.13452,2458.8,2458.6,0.40674]
[1725040074437,3.52,2458.8,2458.7,0.3672]
[1725040074643,3.52,2458.8,2458.7,0.77393]
[1725040074846,3.92669,2459.0,2458.8,0.40671]
[1725040075039,3.92669,2459.0,2458.9,0.4067]
[1725040075040,3.52,2459.0,2458.9,0.4067]
[1725040075845,0.00610265,2459.2,2459.1,0.40667]
[1725040076348,0.00610265,2459.2,2459.1,10.47307]
[1725040076639,0.00610265,2459.2,2459.1,7.68087]
[1725040076846,0.00610265,2459.2,2459.1,13.68087]
[1725040077244,3.93275265,2459.2,2459.1,3.2078]
[1725040077445,0.40667,2459.1,2458.7,3.9603]
[1725040077745,0.40667,2459.1,2458.9,0.4067]
[1725040077943,3.93276265,2459.2,2458.9,0.4067]
[1725040078242,0.41276265,2459.2,2458.9,0.40669]
[1725040078445,0.00610265,2459.2,2459.1,0.40667]
[1725040078841,0.00610265,2459.2,2459.1,4.47307]
[1725040079339,0.00610265,2459.2,2459.1,0.40667]
[1725040079846,0.00610265,2459.2,2459.1,4.47307]
[1725040080449,0.00610265,2459.2,2459.1,10.47307]
[1725040080645,0.00610265,2459.2,2459.1,11.07614998]
[1725040081641,0.3618,2459.8,2459.5,0.4066]
[1725040082349,0.40657,2459.7,2459.5,0.4066]
[1725040082846,0.40659,2459.6,2459.5,0.4066]
[1725040083147,0.40658,2459.7,2459.5,0.4066]
[1725040083346,0.40658,2459.7,2459.6,0.40659]
[1725040083744,0.77446265,2459.8,2459.6,0.40659]
[1725040084546,0.36790265,2459.8,2459.6,0.40658]
[1725040084742,0.00610265,2459.8,2459.7,0.40657]
[1725040085051,0.00610265,2459.8,2459.6,0.40657]
[1725040085242,0.00610265,2459.8,2459.7,0.40657]
[1725040085639,0.00610265,2459.8,2459.7,4.47217]
[1725040086350,0.00610265,2459.8,2459.7,4.83327]
[1725040086737,4.69,2460.2,2460.1,0.4065]
[1725040086940,4.22392,2460.5,2460.2,0.40647]
[1725040086941,5.09647,2460.4,2460.2,0.40647]
[1725040087142,5.09647,2460.4,2460.3,0.40647]
[1725040087348,9.43046305,2460.4,2460.3,0.40647]
[1725040087748,9.02399305,2460.4,2460.3,0.40647]
[1725040088453,0.00610265,2460.6,2460.5,0.40644]
[1725040088640,0.00610265,2460.6,2460.5,1.42254]
[1725040088843,0.00610265,2460.6,2460.5,7.67824]
[1725040089158,0.00610265,2460.6,2460.5,4.47044]
[1725040089460,0.00610265,2460.6,2460.5,0.40644]
[1725040089749,0.00610265,2460.6,2460.5,7.67824]
[1725040090644,0.00610265,2460.6,2460.5,8.69434]
[1725040091246,0.00610265,2460.6,2460.5,7.67824]
[1725040091448,0.00610265,2460.6,2460.5,0.40644]
[1725040091646,0.00610265,2460.6,2460.5,4.47044]
[1725040091839,0.00610265,2460.6,2460.5,7.67824]
[1725040092048,0.00610265,2460.6,2460.5,8.69434]
[1725040092745,0.40635,2461.1,2460.5,8.69434]
[1725040092746,0.40634,2461.1,2461.0,0.40635]
[1725040092945,0.40634,2461.1,2460.9,0.40636]
[1725040093141,3.5956,2461.3,2461.0,0.40635]
[1725040093142,0.40633,2461.2,2461.0,0.40635]
[1725040093342,0.40632,2461.2,2460.6,5.56414]
[1725040093539,0.40632,2461.2,2461.0,0.40635]
[1725040093743,4.21428764,2461.3,2461.0,0.40635]
[1725040093951,4.41930979,2461.3,2461.0,0.40635]
[1725040094147,4.41930979,2461.3,2461.1,0.40634]
[1725040094348,4.41930979,2461.3,2461.0,0.40634]
[1725040094753,4.01298979,2461.3,2461.1,0.40634]
[1725040095058,4.41929979,2461.3,2461.0,0.40634]
[1725040095652,4.01298979,2461.3,2461.0,0.40634]
[1725040095957,4.01298979,2461.3,2461.1,0.40634]
[1725040096252,4.01298979,2461.3,2461.0,0.40634]
[1725040096449,3.60170265,2461.3,2460.9,0.00610265]
[1725040096650,3.21390265,2461.3,2460.9,0.00610265]
[1725040096851,3.21390265,2461.3,2461.2,0.40632]
[1725040097059,3.42154499,2461.3,2461.2,0.40632]
[1725040097358,0.21374499,2461.3,2461.2,0.40632]
[1725040097548,0.00610265,2461.3,2461.2,4.46952]
[1725040097850,0.00610265,2461.3,2461.2,4.83892]
[1725040098050,0.00610265,2461.3,2461.2,0.77572]
[1725040098255,0.00610265,2461.3,2461.2,4.83892]
[1725040100351,0.00610265,2461.3,2461.2,5.85473]
[1725040101654,0.00610265,2461.3,2461.2,0.77572]
[1725040102559,0.41240265,2461.3,2461.1,0.40633]
[1725040102753,3.51,2461.2,2461.1,0.40633]
[1725040102947,3.8807,2461.2,2461.1,0.40633]
[1725040103151,0.3707,2461.2,2461.1,0.40633]
[1725040103556,0.00610265,2461.3,2461.2,0.40632]
[1725040104359,0.00610265,2461.3,2460.9,1.39163265]
[1725040104558,0.00610265,2461.3,2461.2,0.40632]
[1725040106057,0.00610265,2461.3,2461.2,4.62993]
[1725040106256,0.00610265,2461.3,2461.2,8.69313]
[1725040106557,0.00610265,2461.3,2461.2,7.67732]
[1725040108249,0.00610265,2461.3,2461.2,9.70894]
[1725040108854,0.00610265,2461.3,2461.2,7.67732]
[1725040109274,0.60862081,2461.8,2461.4,1.01572]
[1725040109560,0.60862081,2461.8,2461.7,0.40624]
[1725040109760,0.40622,2461.8,2461.7,0.40623]
[1725040110359,4.12104324,2461.9,2461.7,0.40623]
[1725040110665,3.92179734,2461.9,2461.5,3.568]
[1725040110866,3.92179734,2461.9,2461.8,0.40622]
[1725040111056,4.32801734,2461.9,2461.7,0.40623]
[1725040111254,4.32801734,2461.9,2461.8,0.40622]
[1725040111458,3.92179734,2461.9,2461.8,0.40622]
[1725040111658,7.98339734,2461.9,2461.8,0.40622]
[1725040111965,0.80563892,2462.0,2461.9,0.40621]
[1725040111966,0.39943892,2462.0,2461.9,0.40621]
[1725040112266,4.93496411,2462.0,2461.9,0.40621]
[1725040112454,8.99656411,2462.0,2461.9,0.40621]
[1725040113053,9.40275411,2462.0,2461.8,0.40621]
[1725040113264,0.40623,2461.8,2461.6,0.40624]
[1725040113658,3.51,2461.7,2461.5,0.3602]
[1725040114061,3.91624,2461.7,2461.5,0.76646]
[1725040114363,0.40627,2461.5,2461.4,4.158]
[1725040114564,0.40627,2461.5,2461.3,0.40629]
[1725040114862,4.44109089,2461.5,2461.4,0.40629]
[1725040115361,4.84736089,2461.5,2461.3,0.40629]
[1725040116059,4.44109089,2461.5,2461.4,0.40629]
[1725040116259,4.84736089,2461.5,2461.3,0.40629]
[1725040117264,0.79897,2461.6,2461.4,0.40629]
[1725040117469,0.79896,2461.6,2461.4,0.40628]
[1725040117668,0.40627,2461.5,2461.3,0.40629]
[1725040118663,1.00027461,2461.6,2461.4,0.40629]
[1725040118860,0.79896,2461.6,2461.4,0.40629]
[1725040119161,0.40626,2461.6,2461.1,1.41185]
[1725040119353,0.40626,2461.6,2461.4,0.40627]
[1725040119556,3.91621,2461.9,2461.7,0.40623]
[1725040119859,3.91621,2461.9,2461.6,0.40625]
[1725040119860,5.1128847,2461.8,2461.6,0.40625]
[1725040120060,5.1128847,2461.8,2461.6,0.78745]
[1725040120665,3.51,2461.7,2461.1,1.01582]
[1725040120853,0.40626,2461.6,2461.4,0.40628]
[1725040121056,0.40626,2461.6,2461.3,0.4063]
[1725040121057,0.40628,2461.5,2461.3,0.4063]
[1725040121962,5.47796137,2461.6,2461.4,0.40628]
[1725040122267,5.47795137,2461.6,2461.4,0.40628]
[1725040122866,5.47795137,2461.6,2461.5,0.40627]
[1725040122867,5.07169137,2461.6,2461.5,0.40627]
[1725040123467,5.47795137,2461.6,2461.4,0.40628]
[1725040123666,0.40629,2461.4,2461.2,3.589]
[1725040123865,0.40632,2461.3,2461.1,0.40633]
[1725040124071,0.40633,2461.2,2461.0,0.40634]
[1725040124373,0.3817,2461.2,2460.9,7.74490265]
[1725040124565,0.78802,2461.2,2461.1,0.40634]
[1725040125165,0.78802,2461.2,2461.0,0.40634]
[1725040125563,0.78802,2461.2,2460.9,3.58690265]
[1725040125564,0.3817,2461.2,2460.9,3.58690265]
[1725040125766,0.40635,2461.0,2460.9,3.58690265]
[1725040126477,5.06103232,2461.1,2460.9,3.58690265]
[1725040126674,5.06103232,2461.1,2461.0,0.40635]
[1725040126969,5.06103232,2461.1,2460.9,3.58690265]
[1725040126970,5.06104232,2461.1,2460.9,0.78546265]
[1725040127173,4.65469232,2461.1,2460.9,0.78546265]
[1725040127470,5.06103232,2461.1,2460.9,0.78546265]
[1725040127862,0.40635,2461.0,2460.9,0.37910265]
[1725040128364,0.40635,2461.0,2460.4,0.40644]
[1725040128365,0.40641,2460.7,2460.4,0.40644]
[1725040128565,0.80222,2460.6,2460.4,0.40644]
[1725040128772,0.3958,2460.6,2460.4,0.40644]
[1725040129371,0.3958,2460.6,2460.3,4.5285]
[1725040129372,0.3958,2460.6,2460.5,0.40644]
[1725040129572,0.00610265,2460.7,2460.6,0.40642]
[1725040129767,0.00610265,2460.7,2460.6,1.81067552]
[1725040129963,0.00610265,2460.7,2460.6,6.25867552]
[1725040130364,0.00610265,2460.7,2460.6,2.19467552]
[1725040131475,0.00610265,2460.7,2460.6,3.07054867]
[1725040132171,0.00610265,2460.7,2460.6,3.07054038]
[1725040132380,0.00610265,2460.7,2460.6,3.71848796]
[1725040132576,0.00610265,2460.7,2460.6,4.78067072]
[1725040132884,0.00610265,2460.7,2460.6,10.88902497]
[1725040133067,0.00610265,2460.7,2460.6,7.45762187]
[1725040133270,0.00610265,2460.7,2460.6,6.94842509]
[1725040133470,0.00610265,2460.7,2460.6,7.97673713]
[1725040133772,0.00610265,2460.7,2460.6,7.4578567]
[1725040133981,0.00610265,2460.7,2460.6,13.05679713]
[1725040134571,0.00610265,2460.7,2460.6,12.04073713]
[1725040134869,0.00610265,2460.7,2460.6,13.05679713]
[1725040135264,0.00610265,2460.7,2460.6,11.4755169]
[1725040135470,0.00610265,2460.7,2460.6,11.47535511]
[1725040135667,0.00610265,2460.7,2460.6,12.2757058]
[1725040135874,0.00610265,2460.7,2460.6,12.27563559]
[1725040136269,3.2078,2461.2,2461.1,0.40634]
[1725040136476,3.2078,2461.2,2461.1,1.00915291]
[1725040137285,3.61412,2461.2,2461.1,1.00915291]
[1725040137579,3.61412,2461.2,2461.1,1.42202072]
[1725040138080,3.61412,2461.2,2461.1,1.00915291]
[1725040138275,3.61412,2461.2,2461.1,1.42202144]
[1725040138580,3.61412,2461.2,2461.1,1.00915291]
[1725040138581,3.2078,2461.2,2461.1,1.00915291]
[1725040138767,3.2078,2461.2,2461.1,0.40634]
[1725040138968,3.61412,2461.2,2461.1,0.60279679]
[1725040139180,3.2078,2461.2,2461.1,1.42200657]
[1725040139477,3.2078,2461.2,2461.1,1.00913679]
[1725040139871,3.2078,2461.2,2461.1,1.42200683]
[1725040140183,3.2078,2461.2,2461.1,1.00913679]
[1725040140481,3.2078,2461.2,2461.1,2.29779576]
[1725040141268,3.2078,2461.2,2461.1,0.81920789]
[1725040141470,3.2078,2461.2,2461.1,2.29779564]
[1725040141867,7.67732,2461.2,2461.1,1.89145564]
[1725040142175,12.32821857,2461.2,2461.1,1.89145564]
[1725040143074,3.2078,2461.2,2461.1,2.29779564]
[1725040143280,3.2078,2461.2,2461.1,3.03729564]
[1725040144178,3.2078,2461.2,2461.1,1.89145564]
[1725040144369,16.5463379,2461.2,2461.1,0.60279471]
[1725040144570,16.5463379,2461.2,2460.8,5.53729593]
[1725040144571,1.01585,2461.1,2460.8,1.42763062]
[1725040144776,3.91637,2460.9,2460.8,0.3645]
[1725040144977,3.51,2460.9,2460.8,1.38023496]
[1725040145172,12.07237195,2460.9,2460.8,2.25609446]
[1725040145368,12.47874195,2460.9,2460.8,2.25609446]
[1725040145579,12.47874195,2460.9,2460.8,0.60283042]
[1725040145580,23.06507195,2460.9,2460.8,0.60283042]
[1725040145973,0.4064,2460.7,2460.6,4.158]
[1725040146174,0.4064,2460.7,2460.4,11.93448062]
[1725040146175,0.40642,2460.6,2460.4,4.66403062]
[1725040146477,8.34538342,2460.7,2460.5,1.89178043]
[1725040146685,8.34538342,2460.7,2460.6,1.89174703]
[1725040146976,8.34538342,2460.7,2460.6,0.60288498]
[1725040146977,13.42540342,2460.7,2460.6,0.60288498]
[1725040147179,20.00120342,2460.7,2460.6,0.60288498]
[1725040147375,0.40644,2460.5,2460.4,3.2078]
[1725040147576,3.91644,2460.5,2460.4,5.09963695]
[1725040147783,13.67487165,2460.5,2460.4,3.8107007]
[1725040147980,0.40645,2460.4,2460.3,0.00610265]
[1725040148275,5.08478165,2460.4,2460.3,0.60905127]
[1725040148574,9.14958165,2460.4,2460.3,0.60905127]
[1725040149175,4.67833165,2460.4,2460.3,0.60905127]
[1725040149381,9.14958165,2460.4,2460.3,0.60905127]
[1725040150677,9.14958165,2460.4,2460.3,0.00610265]
[1725040150972,3.91644,2460.5,2460.3,1.01549923]
[1725040151184,3.91641,2460.7,2460.4,0.60287717]
[1725040151381,3.91641,2460.7,2460.5,0.60287717]
[1725040151588,7.77734328,2460.7,2460.3,0.00610265]
[1725040151790,0.40638,2460.9,2460.6,0.40642]
[1725040151791,3.91638,2460.9,2460.6,0.40642]
[1725040151975,3.91638,2460.9,2460.7,0.3826]
[1725040152176,4.26734328,2460.8,2460.7,0.3826]
[1725040152381,4.26734328,2460.8,2460.7,0.789]
[1725040152580,3.51,2460.9,2460.7,0.98544223]
[1725040152780,0.3956,2461.0,2460.7,0.3826]
[1725040152982,8.04334,2461.1,2460.8,0.40638]
[1725040153191,8.04335,2461.1,2460.8,0.40638]
[1725040153485,3.51,2460.9,2460.7,3.99679]
[1725040153692,3.91638,2460.9,2460.7,3.5904]
[1725040153883,4.482376,2460.8,2460.7,3.5904]
[1725040154387,4.482376,2460.8,2460.7,4.19326151]
[1725040154601,4.482376,2460.8,2460.7,4.19324939]
[1725040154787,4.482376,2460.8,2460.7,3.5904]
[1725040154984,4.482376,2460.8,2460.7,4.19324592]
[1725040155179,4.482376,2460.8,2460.7,3.5904]
[1725040155388,4.482376,2460.8,2460.7,4.1932492]
[1725040155890,4.888766,2460.8,2460.7,0.3826]
[1725040156084,0.40641,2460.7,2460.5,0.3675]
[1725040156285,3.91641,2460.7,2460.6,0.60286283]
[1725040156685,12.24602758,2460.7,2460.6,0.60286283]
[1725040156880,0.40643,2460.6,2460.4,0.3607]
[1725040157088,0.40643,2460.6,2460.5,0.60288067]
[1725040157586,0.40645,2460.4,2460.3,0.00610265]
[1725040157788,3.91645,2460.5,2460.3,0.60901311]
[1725040158084,5.02093368,2460.4,2460.3,0.00610265]
[1725040158295,5.38483368,2460.4,2460.3,0.00610265]
[1725040158683,10.46577368,2460.4,2460.3,0.00610265]
[1725040158889,10.46577368,2460.4,2459.9,3.5983]
[1725040158890,0.40652,2460.0,2459.9,3.5983]
[1725040159097,0.40652,2460.0,2459.9,4.61430584]
[1725040159393,0.40652,2460.0,2459.9,4.61430773]
[1725040159594,0.40651,2460.1,2459.9,4.61430773]
[1725040159781,0.40651,2460.1,2460.0,0.60296647]
[1725040161294,0.40651,2460.1,2460.0,0.60296784]
[1725040161484,1.01631,2460.0,2459.8,0.00610265]
[1725040161683,5.32439,2459.9,2459.8,0.00610265]
[1725040161896,14.13562144,2459.9,2459.8,0.00610265]
[1725040162196,13.11927144,2459.9,2459.8,0.00610265]
[1725040162892,13.11927144,2459.9,2459.4,0.3958]
[1725040162893,0.4066,2459.5,2459.4,0.3958]
[1725040163089,3.9166,2459.5,2459.4,0.3958]
[1725040163286,12.2215147,2459.5,2459.4,0.3958]
[1725040163488,1.99388593,2459.9,2459.5,0.4066]
[1725040163489,4.50647593,2459.9,2459.5,0.4066]
[1725040163994,4.70373842,2459.8,2459.5,0.41270265]
[1725040164197,5.11029842,2459.8,2459.5,0.00610265]
[1725040164390,0.40657,2459.7,2459.5,0.00610265]
[1725040164586,3.91657,2459.7,2459.5,0.00610265]
[1725040164786,4.2440858,2459.6,2459.5,0.00610265]
[1725040164991,4.6506758,2459.6,2459.5,0.00610265]
[1725040165192,8.7162758,2459.6,2459.5,0.00610265]
[1725040165402,8.3096858,2459.6,2459.5,0.00610265]
[1725040166693,8.3096858,2459.6,2459.5,0.36650265]
[1725040167684,4.2440858,2459.6,2459.5,0.36650265]
[1725040168893,3.51,2459.7,2459.5,0.77310265]
[1725040169300,3.51,2459.7,2459.5,0.36650265]
[1725040169301,4.53435789,2459.6,2459.5,0.36650265]
[1725040169498,4.53435789,2459.6,2459.5,0.77310265]
[1725040169798,4.53435789,2459.6,2459.5,0.36650265]
[1725040170488,4.53435789,2459.6,2459.5,0.77310265]
[1725040170689,4.53435789,2459.6,2459.5,0.36650265]
[1725040171188,4.53435789,2459.6,2459.5,0.77310265]
[1725040171698,4.127,2460.0,2459.9,0.40654]
[1725040171889,0.00610265,2460.1,2459.9,0.40654]
[1725040172396,0.41260265,2460.1,2460.0,0.3831]
[1725040172597,3.51610265,2460.1,2459.7,0.40656]
[1725040172896,3.92261265,2460.1,2459.7,0.78966]
[1725040173293,3.51610265,2460.1,2459.7,0.3831]
[1725040173490,3.51,2459.8,2459.7,0.3831]
[1725040174308,3.51,2459.8,2459.7,0.78967]
[1725040174499,3.51,2459.8,2459.7,0.3831]
[1725040174804,3.51,2459.8,2459.7,1.17677]
[1725040175002,3.51,2459.8,2459.7,0.7702]
[1725040176696,3.51,2459.8,2459.7,1.17677]
[1725040176899,3.51,2459.8,2459.7,0.7702]
[1725040177096,3.51,2459.8,2459.7,1.17677]
[1725040177409,3.51,2460.0,2459.7,4.8358]
[1725040177607,3.51,2460.0,2459.9,0.40654]
[1725040177796,3.51,2460.0,2459.7,0.7702]
[1725040177999,3.51,2460.0,2459.8,0.40654]
[1725040179206,3.51,2460.0,2459.9,0.40654]
[1725040179703,3.51,2460.0,2459.8,0.40654]
[1725040179905,0.20838502,2459.9,2459.8,0.40655]
[1725040180102,3.51,2460.0,2459.9,0.40654]
[1725040180310,3.51,2460.0,2459.8,0.40654]
[1725040180510,0.20165373,2459.9,2459.8,0.40654]
[1725040182708,4.0656,2459.9,2459.7,0.3871]
[1725040183015,0.40658,2459.7,2459.5,0.00610265]
[1725040183197,3.51,2459.6,2459.5,0.00610265]
[1725040183401,7.83090209,2459.6,2459.5,0.41270265]
[1725040183907,4.32090209,2459.6,2459.5,0.41270265]
[1725040184707,3.51,2459.8,2459.5,0.00610265]
[1725040185008,4.60280499,2459.6,2459.5,0.41270265]
[1725040185510,3.91656,2459.8,2459.5,0.41270265]
[1725040185810,4.39537003,2459.7,2459.5,0.41270265]
[1725040186204,4.39537003,2459.7,2459.6,0.40659]
[1725040186402,4.39537003,2459.7,2459.5,0.41269265]
[1725040187409,4.39537003,2459.7,2459.6,0.40659]
[1725040189512,4.80194003,2459.7,2459.5,0.00610265]
[1725040189704,8.46097003,2459.7,2459.5,0.00610265]
[1725040189905,8.46097003,2459.7,2459.5,0.41270265]
[1725040190508,8.86754003,2459.7,2459.5,0.00610265]
[1725040190708,0.40659,2459.6,2459.5,0.00610265]
[1725040191109,12.62644012,2459.6,2459.5,0.00610265]
[1725040192108,12.21985012,2459.6,2459.5,0.00610265]
[1725040192309,4.64425012,2459.6,2459.5,0.00610265]
[1725040192515,4.64425012,2459.6,2459.5,0.41270265]
[1725040194513,0.59242709,2459.9,2459.7,0.40656]
[1725040194705,0.99896709,2459.9,2459.7,0.40656]
[1725040194905,4.60418099,2459.8,2459.7,0.40656]
[1725040195607,4.60418099,2459.8,2459.7,0.79636]
[1725040196506,4.60418099,2459.8,2459.7,1.81279]
[1725040196706,4.60418099,2459.8,2459.7,0.79636]
[1725040196913,6.7178,2460.0,2459.9,0.40654]
[1725040197116,6.7178,2460.0,2459.8,0.40654]
[1725040197319,4.36988324,2459.9,2459.8,0.40655]
[1725040197517,0.61200384,2459.9,2459.7,0.79636]
[1725040197813,0.20546384,2459.9,2459.7,0.79636]
[1725040198208,0.61200384,2459.9,2459.7,0.79636]
[1725040198709,0.20546384,2459.9,2459.7,0.79636]
[1725040199518,4.25377347,2459.8,2459.7,0.40656]
[1725040200614,0.20546384,2459.9,2459.7,0.40656]
[1725040200814,0.20546384,2459.9,2459.6,1.1301]
[1725040201010,0.61200384,2459.9,2459.7,0.40656]
[1725040201514,3.51,2459.8,2459.6,1.46971062]
[1725040201716,8.25980242,2459.8,2459.6,0.40658]
[1725040202010,0.3841,2459.7,2459.6,0.40658]
[1725040202406,4.4497,2459.7,2459.5,1.06923327]
[1725040202615,3.51,2459.6,2459.5,1.06923327]
[1725040202804,3.91659,2459.6,2459.5,1.06923327]
[1725040203009,12.63009989,2459.6,2459.5,1.06923327]
[1725040203209,12.22350989,2459.6,2459.5,0.41922364]
[1725040203413,12.63009989,2459.6,2459.5,1.48235426]
[1725040203719,13.64656989,2459.6,2459.5,0.41922364]
[1725040204019,12.63009989,2459.6,2459.5,0.41922364]